Cogmind - Beta 12 @@@ ROGUE MODE // 2023.05.14 @ 15:59:45 Player: Mr Goldstein Result: Destroyed by G-47 Trooper with Particle Gun Performance ------------- Evolutions (2) 1000 Regions Visited (7) 1400 Robots Destroyed (4) 20 Value Destroyed (60) 60 Prototype IDs (1) 20 Alien Tech Used (0) 0 Bonus (564) 564 TOTAL SCORE: 3064 Bonus ------- Pacifist 564 Cogmind --------- Core Integrity 0/550 Matter 238/300 Energy 99/100 System Corruption 0% Temperature Cool (9) Movement Core (50) Location -8/Storage Parts ------- > --- POWER (1) -------- (None) > --- PROPULSION (2) --- (None) > --- UTILITY (6) ------ (None) > --- WEAPON (2) ------- (None) > --- INVENTORY (5) ---- Reflective Plating Hacking Suite Missile Launcher Peak State ------------ > --- POWER ------------ (None) > --- PROPULSION ------- (None) > --- UTILITY ---------- (None) > --- WEAPON ----------- Advanced EMP Blaster Missile Launcher > --- INVENTORY -------- Reflective Plating Hacking Suite [Rating: 7] Favorites ----------- Power None Propulsion None Utility Improved Light Armor Plating Processor Improved Terrain Scan Processor Protection Improved Light Armor Plating Weapon Missile Launcher Launcher Missile Launcher Build | -11 -10 -9 -9 -9 -8 -8 -8 ------- Run | Jun Mat Mat Min Exi Min Mat Sto Slots Evolved 4 | . . 2 . . . 2 . Power . | . . . . . . . . Propulsion . | . . . . . . . . Utility 4 | . . 2 . . . 2 . Weapon . | . . . . . . . . Parts Attached 5 | . . . . . 1 2 2 Power . | . . . . . . . . Engine . | . . . . . . . . Core . | . . . . . . . . Reactor . | . . . . . . . . Propulsion . | . . . . . . . . Treads . | . . . . . . . . Leg . | . . . . . . . . Wheel . | . . . . . . . . Hover . | . . . . . . . . Flight . | . . . . . . . . Utility 2 | . . . . . 1 1 . Device . | . . . . . . . . Storage . | . . . . . . . . Processor 1 | . . . . . . 1 . Hackware . | . . . . . . . . Protection 1 | . . . . . 1 . . Artifact . | . . . . . . . . Weapon 3 | . . . . . . 1 2 Energy Gun . | . . . . . . . . Energy Cannon . | . . . . . . . . Ballistic Gun . | . . . . . . . . Ballistic Cannon . | . . . . . . . . Launcher 3 | . . . . . . 1 2 Special Weapon . | . . . . . . . . Impact Weapon . | . . . . . . . . Slashing Weapon . | . . . . . . . . Piercing Weapon . | . . . . . . . . Special Melee Weapon . | . . . . . . . . Unidentified Prototypes 1 | . . . . . . . 1 Parts Lost . | . . . . . . . . Power . | . . . . . . . . Propulsion . | . . . . . . . . Utility . | . . . . . . . . Weapon . | . . . . . . . . Highest Loss Streak . | . . . . . . . . To Critical Strikes . | . . . . . . . . Average Slot Usage (%) 3 | . . . . . 9 6 2 Protection 2 | . . . . . 9 4 . Naked Turns 330 | . 80 10 45 92 11 44 48 Heaviest Build 6 | . . . . . 3 3 6 Greatest Support 3 | 3 3 3 3 3 3 3 3 Greatest Overweight (x) 1 | . . . . . . . 1 Average Overweight (x) . | . . . . . . . . Largest Inventory Capacity 5 | 5 5 5 5 5 5 5 5 Average Capacity 5 | 5 5 5 5 5 5 5 5 Most Carried 3 | . . . . . 1 3 3 Average Carried . | . . . . . . 1 2 Final Capacity 5 | 5 5 5 5 5 5 5 5 Final Carried 3 | . . . . . 1 3 3 Class Distribution -------------------- 100% | Mutant Dominant Class ---------------- Mutant | -10/Materials Mutant | -9/Materials Mutant | -9/Mines Mutant | -9/Exiles Mutant | -8/Mines Mutant | -8/Materials Mutant | -8/Storage Resources | -11 -10 -9 -9 -9 -8 -8 -8 ----------- Run | Jun Mat Mat Min Exi Min Mat Sto Matter Collected 179 | 147 . . 22 . 10 . . Remotely . | . . . . . . . . Salvage Created 22 | . . . . . . 22 . Parts 5 | . . . . . . 5 . Haulers Intercepted . | . . . . . . . . Recyclers Shooed 1 | . . . . . . . 1 Parts Field Recycled . | . . . . . . . . Retrieved Matter . | . . . . . . . . Parts Self-Destructed . | . . . . . . . . Prevented . | . . . . . . . . Kills | -11 -10 -9 -9 -9 -8 -8 -8 ------- Run | Jun Mat Mat Min Exi Min Mat Sto Combat Hostiles Destroyed 4 | . . . . . . 4 . AOE 4 | . . . . . . 4 . Classes Destroyed 1 | . . . . . . 1 . Swarmer 4 | . . . . . . 4 . Best Kill Streak 4 | . . . . . . 4 . Combat Bots Only 4 | . . . . . . 4 . Max Kills in Single Turn 4 | . . . . . . 4 . Gunslinging . | . . . . . . . . Exploded 4 | . . . . . . 4 . Melee . | . . . . . . . . Uniques/NPCs Destroyed . | . . . . . . . . Combat | -11 -10 -9 -9 -9 -8 -8 -8 -------- Run | Jun Mat Mat Min Exi Min Mat Sto Damage Taken 829 | . 84 48 . . 138 231 328 Core 741 | . 84 48 . . 56 225 328 Absorbed by Shields . | . . . . . . . . Core Remaining (%) 80 | 100 66 . . . 74 . . Volleys Fired 2 | . . . . . . 1 1 Largest 1 | . . . . . . 1 1 Hottest 36 | . . . . . . 36 36 Shots Fired 2 | . . . . . . 1 1 Gun . | . . . . . . . . Cannon . | . . . . . . . . Launcher 2 | . . . . . . 1 1 Special . | . . . . . . . . Kinetic . | . . . . . . . . Thermal . | . . . . . . . . Explosive 2 | . . . . . . 1 1 Electromagnetic . | . . . . . . . . Robot Hit Streak . | . . . . . . . . Robot Miss Streak . | . . . . . . . . Penetration Max . | . . . . . . . . Secondary Targets . | . . . . . . . . Shots Hit Robots . | . . . . . . . . Core Hits 5 | . . . . . . 5 . Critical Kills . | . . . . . . . . Critical Parts Destroyed . | . . . . . . . . Critical Strikes . | . . . . . . . . Melee Attacks . | . . . . . . . . Impact . | . . . . . . . . Slashing . | . . . . . . . . Piercing . | . . . . . . . . Sneak Attacks . | . . . . . . . . Combat Hostiles . | . . . . . . . . Follow-up Attacks . | . . . . . . . . Damage Inflicted 230 | . 17 5 . . . 190 18 Guns . | . . . . . . . . Cannons . | . . . . . . . . Explosions 190 | . . . . . . 190 . Melee . | . . . . . . . . Ramming 40 | . 17 5 . . . . 18 Kinetic . | . . . . . . . . Thermal . | . . . . . . . . Explosive 190 | . . . . . . 190 . Electromagnetic . | . . . . . . . . Impact . | . . . . . . . . Slashing . | . . . . . . . . Piercing . | . . . . . . . . Highest Corruption 2 | . 2 . . . . . . Average Corruption 2 | . 2 . . . . . . Corruption Purged . | . . . . . . . . Corruption Blocked . | . . . . . . . . Overload Shots . | . . . . . . . . Overflow Damage . | . . . . . . . . Projectiles . | . . . . . . . . Explosions . | . . . . . . . . Melee . | . . . . . . . . Knockbacks . | . . . . . . . . Impact . | . . . . . . . . Kinetic . | . . . . . . . . Secondary . | . . . . . . . . Self-Inflicted Damage 18 | . 7 2 . . . . 9 Shots . | . . . . . . . . Rammed 10 | . 8 1 . . . . 1 Targets Rammed 10 | . 8 1 . . . . 1 Kicked . | . . . . . . . . Crushed . | . . . . . . . . Highest Temperature . | . . . . . . . . Average Temperature . | . . . . . . . . Received Heat Transfer 339 | . 42 9 . . 90 81 117 Siege Activations . | . . . . . . . . Robots Corrupted . | . . . . . . . . Combat Hostiles . | . . . . . . . . Parts Fried . | . . . . . . . . Impact Corruptions . | . . . . . . . . Robots Melted . | . . . . . . . . Combat Hostiles . | . . . . . . . . Parts Melted . | . . . . . . . . Heat Transferred . | . . . . . . . . Parts Sabotaged . | . . . . . . . . Parts Stolen . | . . . . . . . . Parts Stripped . | . . . . . . . . Power Chain Reactions . | . . . . . . . . Missiles Intercepted . | . . . . . . . . Alert | -11 -10 -9 -9 -9 -8 -8 -8 ------- Run | Jun Mat Mat Min Exi Min Mat Sto Peak Influence 186 | . 15 20 7 . 90 179 186 Initial 75 | . . 5 7 . . 35 75 Average 58 | . 13 14 7 . 44 93 137 Maximum Alert Level . | . . . . . . . . Low Security (%) 100 | 100 100 100 100 . 100 100 100 Level 1 . | . . . . . . . . Level 2 . | . . . . . . . . Level 3 . | . . . . . . . . Level 4 . | . . . . . . . . Level 5 . | . . . . . . . . High Security . | . . . . . . . . Max Security . | . . . . . . . . Squads Dispatched 5 | . 2 . . . . 1 2 Investigation 1 | . 1 . . . . . . Extermination . | . . . . . . . . Reinforcement 4 | . 1 . . . . 1 2 Assault . | . . . . . . . . Garrison . | . . . . . . . . Intercept . | . . . . . . . . Searches Triggered . | . . . . . . . . Construction Impeded . | . . . . . . . . Haulers Reinforced . | . . . . . . . . Active Scanning Responses . | . . . . . . . . Cargo Convoy Interrupts . | . . . . . . . . Stealth | -11 -10 -9 -9 -9 -8 -8 -8 --------- Run | Jun Mat Mat Min Exi Min Mat Sto Distress Signals 2 | . . . . . . 1 1 Communications Jammed . | . . . . . . . . Distress Signals . | . . . . . . . . Times Spotted 36 | . 3 2 . . 6 14 11 Peak Tracking Total 9 | . 2 2 . . 6 9 8 Tactical Retreats 2 | . . . . . 2 . . Traps | -11 -10 -9 -9 -9 -8 -8 -8 ------- Run | Jun Mat Mat Min Exi Min Mat Sto Traps Triggered 2 | . 1 . . . . 1 . Indirectly . | . . . . . . . . Trap Hack Attempts . | . . . . . . . . Triggered . | . . . . . . . . Disarmed . | . . . . . . . . Reprogrammed . | . . . . . . . . Reused . | . . . . . . . . Traps Extracted . | . . . . . . . . Installed . | . . . . . . . . Triggered . | . . . . . . . . Machines | -11 -10 -9 -9 -9 -8 -8 -8 ---------- Run | Jun Mat Mat Min Exi Min Mat Sto Machines Disabled 2 | . . . . . . 1 1 Max in Single Turn 1 | . . . . . . 1 1 Machines Repaired . | . . . . . . . . Machines Sabotaged . | . . . . . . . . Overloaded Fab Kills . | . . . . . . . . Hacking | -11 -10 -9 -9 -9 -8 -8 -8 --------- Run | Jun Mat Mat Min Exi Min Mat Sto Machines Accessed 1 | . . . . . . . 1 Terminals 1 | . . . . . . . 1 Fabricators . | . . . . . . . . Repair Stations . | . . . . . . . . Recycling Units . | . . . . . . . . Scanalyzers . | . . . . . . . . Garrison Access . | . . . . . . . . Total Hacks 3 | . . . . . . . 3 Successful 1 | . . . . . . . 1 Failed 2 | . . . . . . . 2 Catastrophic . | . . . . . . . . Database Lockouts . | . . . . . . . . Manual . | . . . . . . . . Terminals 3 | . . . . . . . 3 Fabricators . | . . . . . . . . Repair Stations . | . . . . . . . . Recycling Units . | . . . . . . . . Scanalyzers . | . . . . . . . . Garrison Access . | . . . . . . . . Terminal Hacks 1 | . . . . . . . 1 Open Door 1 | . . . . . . . 1 Fabricator Hacks . | . . . . . . . . Repair Station Hacks . | . . . . . . . . Recycling Unit Hacks . | . . . . . . . . Scanalyzer . | . . . . . . . . Garrison Access Hacks . | . . . . . . . . Unauthorized Hacks . | . . . . . . . . Terminals . | . . . . . . . . Fabricators . | . . . . . . . . Repair Stations . | . . . . . . . . Recycling Units . | . . . . . . . . Scanalyzers . | . . . . . . . . Garrison Access . | . . . . . . . . Data Cores Recovered . | . . . . . . . . Used . | . . . . . . . . Hacking Detections . | . . . . . . . . Full Trace Events . | . . . . . . . . Feedback Events . | . . . . . . . . Feedback Blocked . | . . . . . . . . Robot Schematics Acquired . | . . . . . . . . Robots Built . | . . . . . . . . Authchips . | . . . . . . . . Time . | . . . . . . . . Total Robot Build Rating . | . . . . . . . . Part Schematics Acquired . | . . . . . . . . Parts Built . | . . . . . . . . Authchips . | . . . . . . . . Time . | . . . . . . . . Total Part Build Rating . | . . . . . . . . Parts Repaired . | . . . . . . . . Time . | . . . . . . . . Parts Recycled . | . . . . . . . . Recycled Matter . | . . . . . . . . Retrieved Matter . | . . . . . . . . Retrieved Components . | . . . . . . . . Parts Scanalyzed . | . . . . . . . . Part Schematics Acquired . | . . . . . . . . Parts Damaged . | . . . . . . . . Bothacking | -11 -10 -9 -9 -9 -8 -8 -8 ------------ Run | Jun Mat Mat Min Exi Min Mat Sto Used RIF Installer . | . . . . . . . . Robots Hacked . | . . . . . . . . Non-combat . | . . . . . . . . Combat . | . . . . . . . . Robot Hacks Applied . | . . . . . . . . Relay Couplers Released . | . . . . . . . . Fabnet Peak Effective % . | . . . . . . . . Robots Rewired . | . . . . . . . . Allies Hacked . | . . . . . . . . Hacks Repelled . | . . . . . . . . Allies | -11 -10 -9 -9 -9 -8 -8 -8 -------- Run | Jun Mat Mat Min Exi Min Mat Sto Total Allies . | . . . . . . . . Largest Group . | . . . . . . . . Highest-Rated Group . | . . . . . . . . Highest-Rated Ally . | . . . . . . . . Total Orders . | . . . . . . . . Ally Attacks . | . . . . . . . . Total Damage . | . . . . . . . . Kills . | . . . . . . . . Allies Corrupted . | . . . . . . . . Allies Melted . | . . . . . . . . Intel | -11 -10 -9 -9 -9 -8 -8 -8 ------- Run | Jun Mat Mat Min Exi Min Mat Sto Robot Analysis Total . | . . . . . . . . Derelict Logs Recovered 1 | . . . 1 . . . . Drone Launches . | . . . . . . . . Drone Recoveries . | . . . . . . . . Exploration | -11 -10 -9 -9 -9 -8 -8 -8 ------------- Run | Jun Mat Mat Min Exi Min Mat Sto Turns Passed 489 | 13 80 10 45 92 95 88 66 Spaces Moved 912 | 25 143 19 90 184 184 162 105 Core 912 | 25 143 19 90 184 184 162 105 Treads . | . . . . . . . . Legs . | . . . . . . . . Wheels . | . . . . . . . . Hover . | . . . . . . . . Flight . | . . . . . . . . Fastest Speed 50 | 50 50 50 50 50 50 50 50 Average Speed 50 | 50 50 50 50 50 50 50 56 Slowest Speed 100 | 50 50 50 50 50 50 50 100 Overloaded Moves . | . . . . . . . . Propulsion Burnouts . | . . . . . . . . Robots Hopped . | . . . . . . . . Cave-ins Triggered . | . . . . . . . . Exploration Rate (%) 30 | 3 28 3 29 64 71 22 25 Regions Visited 7 Branch Regions 4 Pre-discovered Areas 1 | . . . 1 . . . . Known Exits Taken . | . . . . . . . . Unknown Exits Taken 7 | 1 1 1 1 1 1 1 . Scrap Searched 2 | . . . . . 2 . . Spaces Dug . | . . . . . . . . Terrain Destroyed 16 | . . . . . . 7 9 Melee . | . . . . . . . . Projectile . | . . . . . . . . AOE 16 | . . . . . . 7 9 Terrain Rammed . | . . . . . . . . Walls Destroyed . | . . . . . . . . Machines Disabled . | . . . . . . . . Actions | -11 -10 -9 -9 -9 -8 -8 -8 --------- Run | Jun Mat Mat Min Exi Min Mat Sto Total 927 | 24 150 19 89 183 185 166 111 Wait . | . . . . . . . . Move 906 | 24 142 19 89 183 183 161 105 Hop . | . . . . . . . . Pick Up 2 | . . . . . 1 1 . Fast Attach 4 | . . . . . 1 2 1 Attach 1 | . . . . . . . 1 Detach 2 | . . . . . . 1 1 Swap . | . . . . . . . . Drop 1 | . . . . . . . 1 Fire 2 | . . . . . . 1 1 Melee . | . . . . . . . . Ram 9 | . 8 . . . . . 1 Kick . | . . . . . . . . Crush . | . . . . . . . . Escape Stasis . | . . . . . . . . Rewire . | . . . . . . . . Trap . | . . . . . . . . Miscellaneous . | . . . . . . . . Route ------- -11/Junkyard -10/Materials -9/Materials -9/Mines -9/Exiles (discovered 2 exits: [*Min x2]) -8/Mines -8/Materials -8/Storage History --------- Turn | Location | Event 3 | -11/Junkyard | Discovered new exit (range 16) 14 | -11/Junkyard | Entered Materials 88 | -10/Materials | Discovered new exit (range 12) 94 | -10/Materials | Entered another Materials area 94 | -9/Materials | Evolved 2 slots: Utility x2 97 | -9/Materials | Discovered new exit (range 16) 104 | -9/Materials | Entered Mines 144 | -9/Mines | Learned location of Recycling (-8) 147 | -9/Mines | Deemed a non-threat by the Exiles lab entrance 147 | -9/Mines | Discovered new exit (range 5) 149 | -9/Mines | Entered Exiles 149 | -9/Exiles | Found Exiles lab abandoned 157 | -9/Exiles | Discovered new exit (range 15) 235 | -9/Exiles | Discovered new exit (range 14) 241 | -9/Exiles | Entered Mines 311 | -8/Mines | Build established: Mutant 331 | -8/Mines | Discovered new exit (range 13) 336 | -8/Mines | Entered Materials 336 | -8/Materials | Evolved 2 slots: Utility x2 417 | -8/Materials | Discovered new exit (range 13) 424 | -8/Materials | Entered Storage 440 | -8/Storage | Core integrity fell below 50% 456 | -8/Storage | Core integrity fell below 20% 490 | -8/Storage | Destroyed by G-47 Trooper with Particle Gun Last Messages --------------- GOAL=ESCAPE 00430_ K-01 Serf destroyed. 00433_ Connecting with Door Terminal... 00433_ Current location identified: Storage >>Open(Door) Sealed Heavy Doors opened. 00436_ O-16 Technician: "IFF HANDSHAKE FAILED. SECURING TERMINAL." 00444_ ALERT: Hostiles spotted, dispatching reinforcements to Terminal S014. 00446_ Critical hit (Burn: +37). 00475_ Acquired Prototype Launcher. 00475_ Identified Adv. EMP Blaster. 00477_ Dropped Adv. EMP Blaster. 00485_ U-05 Engineer builds a Wall. 00485_ Slammed into R-06 Scavenger. 00486_ R-06 Scavenger sends out distress signal. 00487_ ALERT: Hostiles spotted, dispatching reinforcements to Terminal S015. 00488_ Penetrated by Slug. 00488_ K-01 Serf collects debris. Map ----- +----------------------------------------------------+ | ???????????????????????????????????????? | | ???????????????????????????????????????? | | ???????????????????????????????????????? | | ???????????????????????????????????????? | | ???????????????????????????????????????? | | ???????????????????????????????????????? | | ???????????????????????????????????????? | | ???????????????????????????????????????? | | ???????????????????????????????????????? | | ???????????????????????????????????????? | | ???????????????????????? ????????????? | | ???????????????????????? a????????????? | | ???????????????????????? #???????????? | | ???????????????????????# g#???????????? | | ???????????????????????# g#???????????? | | ???????????????????????# #???????????? | | ???????????????????????# #???????????? | | ???????????????????????# #???????????? | | ???????????????????????# #???????????? | | ???????????????????????Y #???????????? | | ???????????????????????# #???????????? | | ???????????????????????# #???????????? | | ???????????????????????# #???????????? | | ???????????????????????#^ #???????????? | | ??????????????????????## #???????????? | | ?????????????????##### # @k#???????????? | | ?????????????????# # #???????????? | | ?????????????????# # #???????????? | | ?????????????????# # #???????????? | | ??????#+########## """ / +???????????? | | ??????# + # """ # #???????????? | | ??????# # # """ #h +???????????? | | ####### # # # #???????????? | | # # + #???????????? | | + """"" ######h##???????????? | | # "]][[ #???? ????????????? | | ######### "[[=[ #????"" ???????????? | | ????????# """"" #???""" ??????????? | | ????????# ?? ###???""" ??????????? | | ????????###?######????? ?????????? | | ????????????????????????"" Y????????? | | ?????????????????????????? ""???????? | | ?????????????????????????? ##???????? | | ?????????????????????????? #????????? | | ???????????????????????????####????????? | | ???????????????????????????????????????? | | ???????????????????????????????????????? | | ???????????????????????????????????????? | | ???????????????????????????????????????? | | ???????????????????????????????????????? | +----------------------------------------------------+ Best States ------------- Heat Dissipation 31 Energy Generation 5 Energy Capacity 100 Matter Stores 300 Matter Capacity 300 Sight Range 16 Terrain Scan Density 110 Armor Coverage 150 Evasion (%) 50 Item Schematics ----------------- None Robot Schematics ------------------ None Fabricated ------------ Nothing Alien Tech Used ----------------- None Achievements -------------- None Challenges ------------ None Game ------ Seed AntimatterCatalystCharge Manual? 0 Play Time 00:04:52 Cumulative 208.0 hours Start 2023.05.14 @ 15:55:42 End 2023.05.14 @ 15:59:45 Sessions 1 Manual Loads 0 Difficulty Rogue Special Mode None Game No. 592 Rogue 592 Adventurer 0 Explorer 0 Win Type - Total 9 Types 7/0/1/1/0/0/0/0/0 Lore% 81 Gallery% 79 Achievement% 71 Wizard Run 0 Options --------- ASCII 0 Keyboard 0 Movement Numpad Keybinds 0 Fullscreen 1 Font 16/SmallcapsGlow Map View 75x55 Tactical HUD 1 Map Filters NONE Filters NONE Steam 1 RUN: 879d4a7c-9cd7-45ce-98a6-5bcecad7bf07